fUSD/lending_fUSD_20260630
["ID","MTS","AMOUNT","RATE_DAILY","PERIOD"]
[426732518,1782762846000,-150.0,0.00012181,2]
[426732520,1782762859000,525.22,0.00029386,120]
[426732519,1782762859000,-150.0,0.00012082,2]
[426732522,1782762916000,10000.0,0.00030137,120]
[426732523,1782762961000,342.311729,0.0002,120]
[426732524,1782762961000,342.311729,0.00025,120]
[426732525,1782762978000,442.88746636,0.00011381,2]
[426732558,1782763207000,248.43,0.00019973,30]
[426732559,1782763207000,248.43,0.00011573,60]
[426732563,1782763269000,232.771975,0.0002,120]
[426732564,1782763270000,232.771975,0.00025,120]
[426732565,1782763291000,1001.63,0.0003,120]
[426732566,1782763410000,1891.554,0.00011937,2]
[426732567,1782763410000,196.547,0.00011937,2]
[426732569,1782763577000,158.284943,0.0002,120]
[426732570,1782763578000,158.284943,0.00025,120]
[426732573,1782763772000,-5409.603038,0.00012081,2]
[426732574,1782763780000,-3467.336962,0.00012081,2]
[426732581,1782763781000,-150.0,0.0001218,2]
[426732582,1782763781000,-272.26162614,0.0001218,2]
[426732580,1782763781000,-688.17443433,0.00012171,2]
[426732578,1782763781000,-718.73992127,0.00012082,2]
[426732577,1782763781000,-497.99864742,0.00012082,2]
[426732579,1782763781000,-1038.41785108,0.00012171,2]
[426732575,1782763781000,-77.12037335,0.00012082,2]
[426732576,1782763781000,-1289.30091558,0.00012082,2]
[426732583,1782763781000,-101.61171176,0.00012181,2]
[426732584,1782763805000,-2733.99743876,0.00012181,2]
[426732623,1782763832000,-500.0,0.00013698,2]
[426732611,1782763832000,-497.99864741,0.00013491,2]
[426732607,1782763832000,-150.00000001,0.00013488,2]
[426732612,1782763832000,-166.66,0.00013674,2]
[426732604,1782763832000,-296.29301606,0.00013488,2]
[426732608,1782763832000,-150.0,0.00013488,2]
[426732610,1782763832000,-215.67446722,0.00013488,2]
[426732615,1782763832000,-500.0,0.00013698,2]
[426732622,1782763832000,-500.0,0.00013698,2]
[426732605,1782763832000,-150.0,0.00013488,2]
[426732616,1782763832000,-211.21,0.00013698,2]
[426732625,1782763832000,-500.0,0.00013698,2]
[426732627,1782763832000,-500.0,0.00013698,2]
[426732629,1782763832000,-500.0,0.00013698,2]
[426732618,1782763832000,-369.61,0.00013698,2]
[426732620,1782763832000,-233.82,0.00013698,2]
[426732621,1782763832000,-500.0,0.00013698,2]
[426732614,1782763832000,-500.0,0.00013698,2]
[426732609,1782763832000,-238.810634,0.00013488,2]
[426732596,1782763832000,-166.66,0.00012861,2]
[426732613,1782763832000,-718.73992127,0.00013692,2]
[426732589,1782763832000,-216.58458871,0.00012279,2]
[426732590,1782763832000,-718.73992127,0.00012485,2]
[426732586,1782763832000,-2056.999,0.00012081,2]
[426732588,1782763832000,-157.0,0.00012201,2]
[426732587,1782763832000,-2000.0,0.00012182,2]
[426732591,1782763832000,-859.09,0.00012708,2]
[426732592,1782763832000,-174.47,0.00012734,2]
[426732598,1782763832000,-166.66,0.00013132,2]
[426732601,1782763832000,-718.73992127,0.0001329,2]
[426732619,1782763832000,-500.0,0.00013698,2]
[426732594,1782763832000,-200.0,0.0001276,2]
[426732595,1782763832000,-355.44,0.0001279,2]
[426732593,1782763832000,-240.4,0.0001274,2]
[426732600,1782763832000,-250.0,0.00013289,2]
[426732597,1782763832000,-718.73992127,0.00012887,2]
[426732602,1782763832000,-7027.33427486,0.00013334,2]
[426732603,1782763832000,-166.66,0.00013403,2]
[426732606,1782763832000,-150.0,0.00013488,2]
[426732617,1782763832000,-500.0,0.00013698,2]
[426732599,1782763832000,-255.0,0.00013264,2]
[426732636,1782763832000,-500.0,0.00013698,2]
[426732662,1782763832000,-859.09,0.00014297,2]
[426732663,1782763832000,-433.0,0.00014446,2]
[426732665,1782763832000,-7027.33427486,0.00014587,2]
[426732666,1782763832000,-214.57,0.00014761,2]
[426732664,1782763832000,-718.73992127,0.00014497,2]
[426732674,1782763832000,-719.24,0.00014958,2]
[426732669,1782763832000,-718.73992127,0.000149,2]
[426732673,1782763832000,-500.0,0.00014958,2]
[426732667,1782763832000,-11046.26062867,0.000149,2]
[426732672,1782763832000,-500.0,0.00014958,2]
[426732670,1782763832000,-3225.77159214,0.000149,2]
[426732671,1782763832000,-292.25917081,0.00014908,2]
[426732675,1782763832000,-568.92,0.00014958,2]
[426732676,1782763832000,-90009.0,0.00014959,2]
[426732678,1782763832000,-12509.73079095,0.00014989,2]
[426732677,1782763832000,-49747.0,0.00014959,2]
[426732632,1782763832000,-500.0,0.00013698,2]
[426732660,1782763832000,-718.73992127,0.00014095,2]
[426732654,1782763832000,-568.92,0.00013698,2]
[426732668,1782763832000,-497.99864741,0.000149,2]
[426732656,1782763832000,-500.0,0.00013698,2]
[426732659,1782763832000,-166.66,0.00013944,2]
[426732647,1782763832000,-719.24,0.00013698,2]
[426732648,1782763832000,-719.24,0.00013698,2]
[426732649,1782763832000,-719.24,0.00013698,2]
[426732639,1782763832000,-500.0,0.00013698,2]
[426732642,1782763832000,-500.0,0.00013698,2]
[426732646,1782763832000,-719.24,0.00013698,2]
[426732643,1782763832000,-500.0,0.00013698,2]
[426732645,1782763832000,-719.24,0.00013698,2]
[426732641,1782763832000,-500.0,0.00013698,2]
[426732650,1782763832000,-568.92,0.00013698,2]
[426732661,1782763832000,-166.66,0.00014215,2]
[426732644,1782763832000,-719.24,0.00013698,2]
[426732653,1782763832000,-568.92,0.00013698,2]
[426732655,1782763832000,-568.92,0.00013698,2]
[426732657,1782763832000,-500.0,0.00013698,2]
[426732652,1782763832000,-568.92,0.00013698,2]
[426732651,1782763832000,-568.92,0.00013698,2]
[426732658,1782763832000,-619.24,0.00013698,2]
[426732713,1782763838000,-151.0,0.00014997,2]
[426732718,1782763838000,-500.0,0.00014999,2]
[426732711,1782763838000,-151.0,0.00014997,2]
[426732710,1782763838000,-151.0,0.00014997,2]
[426732719,1782763838000,-500.0,0.00014999,2]
[426732714,1782763838000,-151.0,0.00014997,2]
[426732717,1782763838000,-500.0,0.00014999,2]
[426732716,1782763838000,-500.0,0.00014999,2]
[426732709,1782763838000,-151.0,0.00014997,2]
[426732715,1782763838000,-151.0,0.00014997,2]
[426732712,1782763838000,-151.0,0.00014997,2]
[426732708,1782763838000,-1151.0615236,0.0001499,2]
[426732699,1782763838000,-211.21,0.00013698,2]
[426732706,1782763838000,-1151.0615236,0.0001499,2]
[426732702,1782763838000,-2150.66212967,0.00014989,2]
[426732704,1782763838000,-280.35220067,0.00014989,2]
[426732700,1782763838000,-1517.13213561,0.000149,2]
[426732701,1782763838000,-105.12167926,0.00014989,2]
[426732703,1782763838000,-24629.35319164,0.00014989,2]
[426732705,1782763838000,-81599.59965215,0.00014989,2]
[426732698,1782763838000,-395.33119098,0.00013698,2]
[426732697,1782763838000,-104.66880902,0.00013698,2]
[426732695,1782763838000,-58.02647757,0.00013698,2]
[426732694,1782763838000,-1481.1769,0.00012081,2]
[426732721,1782763838000,-500.0,0.00014999,2]
[426732707,1782763838000,-1151.0615236,0.0001499,2]
[426732722,1782763838000,-500.0,0.00014999,2]
[426732696,1782763838000,-441.97352243,0.00013698,2]
[426732723,1782763838000,-500.0,0.00014999,2]
[426732720,1782763838000,-500.0,0.00014999,2]
[426732750,1782763838000,-719.25014865,0.00014999,2]
[426732748,1782763838000,-719.24,0.00014999,2]
[426732749,1782763838000,-719.24,0.00014999,2]
[426732747,1782763838000,-719.24,0.00014999,2]
[426732746,1782763838000,-719.24,0.00014999,2]
[426732745,1782763838000,-719.24,0.00014999,2]
[426732744,1782763838000,-719.24,0.00014999,2]
[426732742,1782763838000,-719.24,0.00014999,2]
[426732740,1782763838000,-719.24,0.00014999,2]
[426732739,1782763838000,-719.24,0.00014999,2]
[426732736,1782763838000,-719.24,0.00014999,2]
[426732741,1782763838000,-719.24,0.00014999,2]
[426732743,1782763838000,-719.24,0.00014999,2]
[426732738,1782763838000,-719.24,0.00014999,2]
[426732726,1782763838000,-500.0,0.00014999,2]
[426732737,1782763838000,-719.24,0.00014999,2]
[426732729,1782763838000,-500.0,0.00014999,2]
[426732727,1782763838000,-500.0,0.00014999,2]
[426732728,1782763838000,-500.0,0.00014999,2]
[426732730,1782763838000,-500.0,0.00014999,2]
[426732724,1782763838000,-500.0,0.00014999,2]
[426732732,1782763838000,-500.0,0.00014999,2]
[426732731,1782763838000,-500.0,0.00014999,2]
[426732734,1782763838000,-719.24,0.00014999,2]
[426732733,1782763838000,-612.48851564,0.00014999,2]
[426732735,1782763838000,-719.24,0.00014999,2]
[426732725,1782763838000,-463.00138276,0.00014999,2]
[426732766,1782763839000,-568.92,0.00014999,2]
[426732760,1782763839000,-568.92,0.00014999,2]
[426732757,1782763839000,-568.92,0.00014999,2]
[426732756,1782763839000,-568.92,0.00014999,2]
[426732754,1782763839000,-568.92,0.00014999,2]
[426732752,1782763839000,-568.92,0.00014999,2]
[426732753,1782763839000,-568.92,0.00014999,2]
[426732751,1782763839000,-568.92,0.00014999,2]
[426732764,1782763839000,-568.92,0.00014999,2]
[426732755,1782763839000,-568.92,0.00014999,2]
[426732763,1782763839000,-568.92,0.00014999,2]
[426732761,1782763839000,-568.92,0.00014999,2]
[426732767,1782763839000,-569.10400881,0.00014999,2]
[426732762,1782763839000,-568.92,0.00014999,2]
[426732759,1782763839000,-568.92,0.00014999,2]
[426732758,1782763839000,-568.92,0.00014999,2]
[426732765,1782763839000,-568.92,0.00014999,2]
[426732768,1782763839000,-300.0,0.00014999,2]
[426732769,1782763839000,-300.0,0.00014999,2]
[426732770,1782763839000,-666.0,0.00014999,2]
[426732773,1782763839000,-163.43,0.00015,2]
[426732771,1782763839000,-300.0,0.00014999,2]
[426732774,1782763839000,-9350687.42880563,0.00015,2]
[426732772,1782763839000,-10719122.94466757,0.00015,2]
[426732775,1782763839000,-4007.09066225,0.00015,2]
[426732791,1782763840000,-618.77592,0.00015,2]
[426732792,1782763840000,-902.18819691,0.00015,2]
[426732793,1782763840000,-3410738.23617621,0.00015,2]
[426732795,1782763840000,-170.143497,0.00015,2]
[426732794,1782763840000,-170.143497,0.00015,2]
[426732842,1782763841000,-500.0,0.00015,2]
[426732827,1782763841000,-500.0,0.00015,2]
[426732825,1782763841000,-500.0,0.00015,2]
[426732833,1782763841000,-500.0,0.00015,2]
[426732837,1782763841000,-500.0,0.00015,2]
[426732835,1782763841000,-500.0,0.00015,2]
[426732831,1782763841000,-500.0,0.00015,2]
[426732832,1782763841000,-500.0,0.00015,2]
[426732836,1782763841000,-500.0,0.00015,2]
[426732838,1782763841000,-500.0,0.00015,2]
[426732839,1782763841000,-500.0,0.00015,2]
[426732841,1782763841000,-500.0,0.00015,2]
[426732843,1782763841000,-500.0,0.00015,2]
[426732851,1782763841000,-500.0,0.00015,2]
[426732844,1782763841000,-500.0,0.00015,2]
[426732848,1782763841000,-500.0,0.00015,2]
[426732845,1782763841000,-500.0,0.00015,2]
[426732847,1782763841000,-500.0,0.00015,2]
[426732840,1782763841000,-500.0,0.00015,2]
[426732846,1782763841000,-500.0,0.00015,2]
[426732850,1782763841000,-500.0,0.00015,2]
[426732854,1782763841000,-500.0,0.00015,2]
[426732852,1782763841000,-500.0,0.00015,2]
[426732855,1782763841000,-500.0,0.00015,2]
[426732853,1782763841000,-500.0,0.00015,2]
[426732859,1782763841000,-500.0,0.00015,2]
[426732826,1782763841000,-500.0,0.00015,2]
[426732849,1782763841000,-500.0,0.00015,2]
[426732829,1782763841000,-500.0,0.00015,2]
[426732798,1782763841000,-500.0,0.00015,2]
[426732824,1782763841000,-500.0,0.00015,2]
[426732858,1782763841000,-500.0,0.00015,2]
[426732797,1782763841000,-170.143497,0.00015,2]
[426732800,1782763841000,-500.0,0.00015,2]
[426732796,1782763841000,-170.143497,0.00015,2]
[426732799,1782763841000,-500.0,0.00015,2]
[426732801,1782763841000,-500.0,0.00015,2]
[426732802,1782763841000,-500.0,0.00015,2]
[426732803,1782763841000,-500.0,0.00015,2]
[426732804,1782763841000,-500.0,0.00015,2]
[426732805,1782763841000,-500.0,0.00015,2]
[426732810,1782763841000,-500.0,0.00015,2]
[426732808,1782763841000,-500.0,0.00015,2]
[426732809,1782763841000,-500.0,0.00015,2]
[426732834,1782763841000,-500.0,0.00015,2]
[426732807,1782763841000,-500.0,0.00015,2]
[426732806,1782763841000,-500.0,0.00015,2]
[426732812,1782763841000,-500.0,0.00015,2]
[426732816,1782763841000,-500.0,0.00015,2]
[426732813,1782763841000,-500.0,0.00015,2]
[426732815,1782763841000,-500.0,0.00015,2]
[426732814,1782763841000,-500.0,0.00015,2]
[426732820,1782763841000,-500.0,0.00015,2]
[426732818,1782763841000,-500.0,0.00015,2]
[426732821,1782763841000,-500.0,0.00015,2]
[426732817,1782763841000,-500.0,0.00015,2]
[426732819,1782763841000,-500.0,0.00015,2]
[426732822,1782763841000,-500.0,0.00015,2]
[426732823,1782763841000,-500.0,0.00015,2]
[426732811,1782763841000,-500.0,0.00015,2]
[426732857,1782763841000,-500.0,0.00015,2]
[426732887,1782763841000,-1843.297426,0.00015,2]
[426732856,1782763841000,-500.0,0.00015,2]
[426732891,1782763841000,-151.0,0.00015,2]
[426732896,1782763841000,-299.99,0.00016116,4]
[426732894,1782763841000,-859.09,0.00015885,2]
[426732895,1782763841000,-150.99,0.00016116,2]
[426732897,1782763841000,-4828.71,0.00016116,2]
[426732901,1782763841000,-7241.04,0.00016116,2]
[426732902,1782763841000,-1341.88,0.00016116,2]
[426732899,1782763841000,-268.14,0.00016116,2]
[426732898,1782763841000,-63208.02,0.00016116,2]
[426732900,1782763841000,-9607.44,0.00016116,2]
[426732904,1782763841000,-250.0,0.00016337,2]
[426732914,1782763841000,-516.04405712,0.00016438,2]
[426732905,1782763841000,-290.0,0.00016438,2]
[426732906,1782763841000,-500.0,0.00016438,2]
[426732907,1782763841000,-500.0,0.00016438,2]
[426732908,1782763841000,-500.0,0.00016438,2]
[426732911,1782763841000,-500.0,0.00016438,2]
[426732912,1782763841000,-500.0,0.00016438,2]
[426732909,1782763841000,-500.0,0.00016438,2]
[426732913,1782763841000,-500.0,0.00016438,2]
[426732910,1782763841000,-500.0,0.00016438,2]
[426732915,1782763841000,-500.0,0.00016438,2]
[426732916,1782763841000,-500.0,0.00016438,2]
[426732919,1782763841000,-500.0,0.00016438,2]
[426732918,1782763841000,-500.0,0.00016438,2]
[426732917,1782763841000,-500.0,0.00016438,2]
[426732861,1782763841000,-500.0,0.00015,2]
[426732892,1782763841000,-299.453797,0.00015,2]
[426732893,1782763841000,-684.34,0.00015068,2]
[426732903,1782763841000,-150.0,0.00016335,2]
[426732889,1782763841000,-1843.297426,0.00015,2]
[426732860,1782763841000,-500.0,0.00015,2]
[426732890,1782763841000,-151.0,0.00015,2]
[426732863,1782763841000,-500.0,0.00015,2]
[426732865,1782763841000,-500.0,0.00015,2]
[426732864,1782763841000,-500.0,0.00015,2]
[426732874,1782763841000,-500.0,0.00015,2]
[426732866,1782763841000,-500.0,0.00015,2]
[426732868,1782763841000,-500.0,0.00015,2]
[426732872,1782763841000,-500.0,0.00015,2]
[426732870,1782763841000,-500.0,0.00015,2]
[426732875,1782763841000,-500.0,0.00015,2]
[426732871,1782763841000,-500.0,0.00015,2]
[426732873,1782763841000,-500.0,0.00015,2]
[426732867,1782763841000,-500.0,0.00015,2]
[426732862,1782763841000,-500.0,0.00015,2]
[426732876,1782763841000,-500.0,0.00015,2]
[426732885,1782763841000,-628.352876,0.00015,2]
[426732884,1782763841000,-500.0,0.00015,2]
[426732882,1782763841000,-500.0,0.00015,2]
[426732920,1782763841000,-500.0,0.00016438,2]
[426732869,1782763841000,-500.0,0.00015,2]
[426732880,1782763841000,-500.0,0.00015,2]
[426732881,1782763841000,-500.0,0.00015,2]
[426732877,1782763841000,-500.0,0.00015,2]
[426732886,1782763841000,-1843.297426,0.00015,2]
[426732879,1782763841000,-500.0,0.00015,2]
[426732888,1782763841000,-1843.297426,0.00015,2]
[426732878,1782763841000,-500.0,0.00015,2]
[426732883,1782763841000,-500.0,0.00015,2]
[426732933,1782763842000,-3019.915411,0.00016438,2]
[426732937,1782763842000,-1456.44,0.00016499,2]
[426732934,1782763842000,-3019.915411,0.00016438,2]
[426732931,1782763842000,-684.34,0.00016438,2]
[426732941,1782763842000,-312.46,0.00017645,2]
[426732949,1782763842000,-8955.35,0.00018356,2]
[426732942,1782763842000,-312.58,0.00017645,2]
[426732951,1782763842000,-9999.99,0.00018533,2]
[426732946,1782763842000,-236.95,0.00018016,2]
[426732932,1782763842000,-3019.915411,0.00016438,2]
[426732947,1782763842000,-623.74,0.00018016,2]
[426732940,1782763842000,-859.09,0.00017474,2]
[426732936,1782763842000,-174.52,0.00016497,2]
[426732927,1782763842000,-214.784109,0.00016438,2]
[426732928,1782763842000,-214.784109,0.00016438,2]
[426732930,1782763842000,-214.784109,0.00016438,2]
[426732939,1782763842000,-169.26,0.00017284,2]
[426732938,1782763842000,-175.18,0.00016641,2]
[426732929,1782763842000,-214.784109,0.00016438,2]
[426732924,1782763842000,-500.0,0.00016438,2]
[426732926,1782763842000,-500.0,0.00016438,2]
[426732921,1782763842000,-500.0,0.00016438,2]
[426732925,1782763842000,-500.0,0.00016438,2]
[426732922,1782763842000,-500.0,0.00016438,2]
[426732923,1782763842000,-500.0,0.00016438,2]
[426732944,1782763842000,-4394.53083232,0.00018,2]
[426732935,1782763842000,-3019.915411,0.00016438,2]
[426732945,1782763842000,-1057.91184149,0.00018,2]
[426732975,1782763842000,-1312.30499538,0.000201,2]
[426732948,1782763842000,-175.18,0.00018306,2]
[426732976,1782763842000,-1096.54430216,0.000201,2]
[426732977,1782763842000,-671.43176771,0.000201,2]
[426732973,1782763842000,-408.0,0.0002,2]
[426732971,1782763842000,-189.0,0.0002,2]
[426732969,1782763842000,-157.0,0.0002,2]
[426732974,1782763842000,-154.0,0.0002,2]
[426732972,1782763842000,-290.0,0.0002,2]
[426732970,1782763842000,-197.856179,0.0002,2]
[426732943,1782763842000,-1159.15,0.00017645,2]
[426732966,1782763842000,-153.0,0.0002,2]
[426732964,1782763842000,-162.0,0.0002,2]
[426732967,1782763842000,-309.0,0.0002,2]
[426732965,1782763842000,-668.0,0.0002,2]
[426732968,1782763842000,-3007.09826212,0.0002,7]
[426732959,1782763842000,-384.17225189,0.000199,2]
[426732950,1782763842000,-29999.99,0.00018533,2]
[426732963,1782763842000,-1989.78502611,0.0002,2]
[426732952,1782763842000,-366.27966924,0.0001901,7]
[426732960,1782763842000,-2000.0,0.0002,7]
[426732961,1782763842000,-155.0,0.0002,2]
[426732953,1782763842000,-859.09,0.00019062,2]
[426732958,1782763842000,-10351.40320883,0.000199,2]
[426732954,1782763842000,-3000.0,0.00019178,2]
[426732956,1782763842000,-196.65674306,0.00019274,2]
[426732955,1782763842000,-3000.0,0.00019178,7]
[426732957,1782763842000,-1312.30499538,0.000199,2]
[426732962,1782763842000,-197.19051785,0.0002,2]
[426732984,1782763844000,-1989.78502611,0.000202,2]
[426732987,1782763844000,-7874.70150672,0.000203,2]
[426732986,1782763844000,-1312.30499538,0.000203,2]
[426732988,1782763844000,-1700.88109161,0.000203,2]
[426732985,1782763844000,-374.2367361,0.000202,10]
[426732982,1782763844000,-384.17225189,0.000201,2]
[426732983,1782763844000,-169.26,0.00020165,2]
[426732981,1782763844000,-8583.42713896,0.000201,2]
[426732997,1782763846000,-500.0,0.00020411,2]
[426732994,1782763846000,-775.8206105,0.000203,2]
[426732998,1782763846000,-603.63252654,0.000205,2]
[426732995,1782763846000,-384.17225189,0.000203,2]
[426732996,1782763846000,-1989.78502611,0.000204,2]
[426733011,1782763847000,-151.0,0.00020591,2]
[426733000,1782763847000,-10351.40320883,0.000205,2]
[426733008,1782763847000,-151.0,0.00020591,2]
[426733002,1782763847000,-150.0,0.00020547,2]
[426732999,1782763847000,-708.67246884,0.000205,2]
[426733003,1782763847000,-598.6,0.00020548,2]
[426733004,1782763847000,-151.0,0.00020548,2]
[426733001,1782763847000,-384.17225189,0.000205,2]
[426733006,1782763847000,-151.0,0.00020591,2]
[426733007,1782763847000,-151.0,0.00020591,2]
[426733010,1782763847000,-151.0,0.00020591,2]
[426733009,1782763847000,-151.0,0.00020591,2]
[426733012,1782763847000,-151.0,0.00020591,2]
[426733014,1782763847000,-778.75232637,0.000207,2]
[426733013,1782763847000,-1989.78502611,0.000206,2]
[426733005,1782763847000,-151.0,0.00020591,2]
[426733019,1782763885000,189.941933,0.0002,120]
[426733022,1782764010000,1513.243,0.00011839,2]
[426733023,1782764010000,196.547,0.00011839,2]
[426733024,1782764152000,-150.0,0.0001208,2]
[426733025,1782764192000,193.107631,0.0002,120]
[426733026,1782764205000,-556.01973657,0.0001208,2]
[426733027,1782764258000,-500.0,0.0001208,2]
[426733028,1782764312000,-175.04878965,0.0001208,2]
[426733029,1782764365000,-296.68823215,0.0001208,2]
[426733031,1782764418000,-376.76244828,0.0001208,2]
[426733035,1782764458000,-285.15955509,0.0001208,2]
[426733032,1782764458000,-500.0,0.0001208,2]
[426733036,1782764458000,-150.0,0.0001208,2]
[426733034,1782764458000,-282.7435167,0.0001208,2]
[426733033,1782764458000,-500.0,0.0001208,2]
[426733037,1782764458000,-3482.09692821,0.00012081,2]
[426733038,1782764471000,-2150.66212967,0.00012081,2]
[426733040,1782764484000,437.7335,0.0001198,2]
[426733039,1782764484000,-2150.66212967,0.00012081,2]
[426733041,1782764497000,-1517.13213561,0.00012081,2]
[426733042,1782764509000,-1517.13213561,0.00012081,2]
[426733043,1782764528000,-5000.0,0.00012081,2]
[426733044,1782764531000,-5000.0,0.00012081,2]
[426733045,1782764534000,-5000.0,0.00012081,2]
[426733046,1782764535000,-5000.0,0.00012081,2]
[426733047,1782764536000,-5000.0,0.00012081,2]
[426733048,1782764538000,-5000.0,0.00012081,2]
[426733049,1782764539000,-5000.0,0.00012081,2]
[426733050,1782764541000,-5000.0,0.00012081,2]
[426733051,1782764551000,-3000.0,0.00012081,2]
[426733052,1782764552000,-3000.0,0.00012081,2]
[426733053,1782764559000,7293.1307,0.00011981,2]
[426733054,1782764559000,-2000.0,0.00012081,2]
[426733055,1782764560000,-2000.0,0.00012081,2]
[426733056,1782764568000,-500.0,0.00012081,2]
[426733058,1782764569000,-500.0,0.00012081,2]
[426733057,1782764569000,-500.0,0.00012081,2]
[426733059,1782764571000,-500.0,0.00012081,2]
[426733060,1782764572000,-500.0,0.00012081,2]
[426733062,1782764573000,-500.0,0.00012081,2]
[426733061,1782764573000,-500.0,0.00012081,2]
[426733063,1782764574000,-500.0,0.00012081,2]
[426733064,1782764580000,-169.0,0.00012081,2]
[426733067,1782764610000,500.0,0.00011981,2]
[426733066,1782764610000,196.54797422,0.00011839,2]
[426733065,1782764610000,2358.911,0.00011839,2]
[426733068,1782764626000,150.0,0.00011719,2]
[426733069,1782764671000,2500.0,0.00011981,2]
[426733070,1782764692000,335.87,0.00011476,2]
[426733071,1782764694000,335.87,0.00011778,2]
[426733072,1782764696000,13848.6762,0.00011981,2]
[426733073,1782764708000,3464.7819,0.00011981,2]
[426733075,1782764808000,2500.0,0.00011981,2]
[426733076,1782764810000,162.87784883,0.00011944,2]
[426733077,1782764816000,162.87784882,0.00011978,2]
[426733078,1782764821000,-1154.0,0.00012044,2]
[426733079,1782764849000,-150.0,0.00012012,2]
[426733080,1782764947000,500.0,0.0003,120]
[426733081,1782764979000,-12.87784882,0.00012012,2]
[426733083,1782764979000,-335.87,0.0001208,2]
[426733084,1782764979000,-150.0,0.0001208,2]
[426733087,1782764979000,-170.05030941,0.0001208,2]
[426733085,1782764979000,-150.0,0.0001208,2]
[426733086,1782764979000,-500.0,0.0001208,2]
[426733088,1782764979000,-500.0,0.0001208,2]
[426733082,1782764979000,-818.19091254,0.00012044,2]
[426733090,1782764980000,-474.46603412,0.0001208,2]
[426733089,1782764980000,-500.0,0.0001208,2]
[426733092,1782764980000,-442.54681118,0.0001208,2]
[426733091,1782764980000,-25.53396588,0.0001208,2]
[426733093,1782764980000,-57.45318882,0.0001208,2]
[426733096,1782764980000,-2554.00191607,0.00012081,2]
[426733095,1782764980000,-500.0,0.0001208,2]
[426733094,1782764980000,-500.0,0.0001208,2]
[426733100,1782765005000,-263.26456509,0.00012081,2]
[426733098,1782765005000,-3615.27492463,0.00012081,2]
[426733099,1782765005000,-3765.27492463,0.00012081,2]
[426733097,1782765005000,-150.0,0.0001208,2]
[426733102,1782765026000,906.3681,0.00011981,2]
[426733132,1782765031000,-500.0,0.00013698,2]
[426733131,1782765031000,-500.0,0.00013698,2]
[426733134,1782765031000,-500.0,0.00013698,2]
[426733137,1782765031000,-500.0,0.00013698,2]
[426733140,1782765031000,-500.0,0.00013698,2]
[426733139,1782765031000,-500.0,0.00013698,2]
[426733141,1782765031000,-500.0,0.00013698,2]
[426733147,1782765031000,-605.6,0.00013698,2]
[426733142,1782765031000,-500.0,0.00013698,2]
[426733144,1782765031000,-500.0,0.00013698,2]
[426733145,1782765031000,-605.6,0.00013698,2]
[426733138,1782765031000,-500.0,0.00013698,2]
[426733143,1782765031000,-500.0,0.00013698,2]
[426733135,1782765031000,-500.0,0.00013698,2]
[426733146,1782765031000,-605.6,0.00013698,2]